fUST/lending_fUST_20240313
["ID","MTS","AMOUNT","RATE_DAILY","PERIOD"]
[318609373,1710317441071,-246.841123,0.000189,2]
[318609374,1710317441081,-398.108547,0.000189,2]
[318609375,1710317441089,-246.841123,0.000189,2]
[318609376,1710317441099,-398.108547,0.000189,2]
[318609377,1710317441109,-246.841123,0.000189,2]
[318609378,1710317441118,-398.108547,0.000189,2]
[318609379,1710317441128,-398.108547,0.000189,2]
[318609380,1710317441138,-246.841123,0.000189,2]
[318609381,1710317441147,-398.108547,0.000189,2]
[318609382,1710317441158,-246.841123,0.000189,2]
[318609383,1710317441170,-398.108547,0.000189,2]
[318609384,1710317441179,-398.108547,0.000189,2]
[318609385,1710317441189,-398.108547,0.000189,2]
[318609386,1710317441198,-246.841123,0.000189,2]
[318609387,1710317441207,-398.108547,0.000189,2]
[318609388,1710317441217,-398.108547,0.000189,2]
[318609389,1710317441227,-398.108547,0.000189,2]
[318609390,1710317441237,-398.108548,0.000189,2]
[318609391,1710317441246,-246.841123,0.000189,2]
[318609392,1710317441256,-246.841123,0.000189,2]
[318609393,1710317441265,-246.841123,0.000189,2]
[318609394,1710317441274,-246.841123,0.000189,2]
[318609395,1710317441285,-246.841123,0.000189,2]
[318609396,1710317441295,-246.841123,0.000189,2]
[318609397,1710317441305,-246.841123,0.000189,2]
[318609398,1710317441314,-246.841119,0.000189,2]
[318609399,1710317441323,-151.0,0.000189,2]
[318609400,1710317441333,-151.0,0.000189,2]
[318609401,1710317441343,-151.0,0.000189,2]
[318609402,1710317441352,-250.315926,0.000189,2]
[318609403,1710317441361,-151.0,0.000189,2]
[318609404,1710317441370,-168.046751,0.000189,2]
[318609405,1710317441379,-214.882307,0.000189,2]
[318609406,1710317441390,-214.882307,0.000189,2]
[318609407,1710317441399,-214.882307,0.000189,2]
[318609408,1710317441408,-214.882307,0.000189,2]
[318609409,1710317441419,-214.882307,0.000189,2]
[318609410,1710317441428,-214.882307,0.000189,2]
[318609411,1710317441437,-214.882307,0.000189,2]
[318609412,1710317441447,-214.882307,0.000189,2]
[318609413,1710317441458,-214.882307,0.000189,2]
[318609414,1710317441467,-214.882307,0.000189,2]
[318609415,1710317441478,-214.882307,0.000189,2]
[318609416,1710317441487,-214.882307,0.000189,2]
[318609417,1710317441497,-214.882307,0.000189,2]
[318609418,1710317441507,-214.882307,0.000189,2]
[318609419,1710317441516,-214.882307,0.000189,2]
[318609420,1710317441530,-214.882307,0.000189,2]
[318609421,1710317441539,-214.882307,0.000189,2]
[318609422,1710317441548,-214.882307,0.000189,2]
[318609423,1710317441558,-214.882307,0.000189,2]
[318609424,1710317441567,-214.882313,0.000189,2]
[318609425,1710317441576,-498.81442856,0.000189,30]
[318609426,1710317441585,-1144.19543696,0.000189,30]
[318609427,1710317441594,-151.18073167,0.000189,30]
[318609428,1710317441603,-32647.92009571,0.000189,60]
[318611724,1710318633065,-1845.61451402,0.00016873,2]
[318611726,1710318633075,-155.06202481,0.00016973,2]
[318611728,1710318633085,-644.67484635,0.00016973,2]
[318611730,1710318633094,-322.1031252,0.00016974,2]
[318611732,1710318633103,-746.21795384,0.00016975,2]
[318611735,1710318633112,-516.89318281,0.00016975,2]
[318611738,1710318633122,-201.334708,0.0001698,2]
[318611741,1710318633131,-1696.088666,0.00017051,2]
[318611744,1710318633140,-767.06283167,0.00017999,2]
[318611748,1710318633154,-3403.18289254,0.00017999,2]
[318611750,1710318633163,-500.0,0.00017999,2]
[318611753,1710318633172,-500.0,0.00017999,2]
[318611755,1710318633181,-589.87083125,0.00017999,2]
[318611758,1710318633190,-500.0,0.00017999,2]
[318611761,1710318633199,-500.0,0.00017999,2]
[318611764,1710318633211,-500.0,0.00017999,2]
[318611767,1710318633221,-500.0,0.00017999,2]
[318611770,1710318633229,-500.0,0.00017999,2]
[318611772,1710318633239,-500.0,0.00017999,2]
[318611774,1710318633248,-500.0,0.00017999,2]
[318611776,1710318633257,-624.30127966,0.00018,2]
[318611778,1710318633266,-745.99739388,0.00018803,2]
[318611780,1710318633276,-500.0,0.00018898,2]
[318611781,1710318633285,-929.00320615,0.00018898,2]
[318611782,1710318633294,-204.80125661,0.00018898,2]
[318611783,1710318633303,-14622.62970898,0.00018898,2]
[318612397,1710318639172,-638.28550975,0.00018898,2]
[318612420,1710318639275,-1887.11867279,0.00018898,2]
[318612423,1710318639284,-1081.09653886,0.00018898,2]
[318612426,1710318639294,-3145.34600817,0.00018898,2]
[318612427,1710318639304,-429.31792098,0.00018899,2]
[318612431,1710318639314,-155.18772662,0.00018899,2]
[318612434,1710318639323,-334.76056881,0.00018899,2]
[318612435,1710318639332,-500.0,0.00018899,2]
[318612439,1710318639342,-500.0,0.00018899,2]
[318612442,1710318639351,-493.68077164,0.00018899,2]
[318612445,1710318639361,-500.0,0.00018899,2]
[318612449,1710318639370,-504.28791785,0.00018899,2]
[318612450,1710318639380,-366.57803841,0.00018899,2]
[318612453,1710318639389,-500.0,0.00018899,2]
[318612456,1710318639398,-500.63318214,0.00018899,2]
[318612459,1710318639408,-500.0,0.00018899,2]
[318612463,1710318639417,-477.39797374,0.00018899,2]
[318612467,1710318639427,-500.0,0.00018899,2]
[318612470,1710318639436,-500.0,0.00018899,2]
[318612472,1710318639446,-500.0,0.00018899,2]
[318612474,1710318639455,-500.0,0.00018899,2]
[318612477,1710318639470,-500.0,0.00018899,2]
[318612481,1710318639479,-500.0,0.00018899,2]
[318612484,1710318639492,-500.0,0.00018899,2]
[318612487,1710318639502,-500.0,0.00018899,2]
[318612490,1710318639512,-500.0,0.00018899,2]
[318612493,1710318639523,-500.0,0.00018899,2]
[318612496,1710318639533,-500.0,0.00018899,2]
[318612499,1710318639542,-500.0,0.00018899,2]
[318612502,1710318639551,-607.88,0.00018899,2]
[318612504,1710318639562,-500.0,0.00018899,2]
[318612506,1710318639572,-478.77977753,0.00018899,2]
[318612508,1710318639581,-253.85678197,0.00018899,2]
[318612510,1710318639591,-155.09926353,0.000189,2]
[318612512,1710318639600,-45031.65665433,0.000189,2]
[318612514,1710318639613,-405.49,0.000189,2]
[318612612,1710318640556,-20715.00884804,0.000189,2]
[318612622,1710318640636,-1267.10490834,0.000189,2]
[318612624,1710318640645,-155.09926353,0.000189,2]
[318612626,1710318640654,-11161.34408351,0.000189,2]
[318612628,1710318640663,-500.0,0.00018902,2]
[318612630,1710318640672,-473.76,0.00018902,2]
[318612632,1710318640681,-84151.36534462,0.00018903,60]
[318612634,1710318640694,-7333.81156242,0.00018903,60]
[318612944,1710318643532,-96385.59605309,0.00018903,60]
[318612947,1710318643543,-4712.45339212,0.00018903,60]
[318612949,1710318643556,-322.1812,0.00018903,60]
[318613262,1710318646825,-500.0,0.00018899,2]
[318613264,1710318646835,-500.0,0.00018899,2]
[318613266,1710318646845,-500.0,0.00018899,2]
[318613268,1710318646854,-500.0,0.00018902,2]
[318613270,1710318646864,-700.45136438,0.00018902,2]
[318613272,1710318646874,-205.19886037,0.00018902,2]
[318613274,1710318646883,-746.21795384,0.00018902,2]
[318613276,1710318646892,-7381.38182141,0.00018903,60]
[318613281,1710318646931,-78298.84305809,0.00018903,60]
[318615449,1710319770916,-6054.64157868,0.00025,60]
[318615450,1710319770925,-157.703468,0.00027671,69]
[318615451,1710319770934,-157.703468,0.00027671,86]
[318615452,1710319770944,-157.703468,0.00027671,103]
[318615453,1710319770953,-157.703468,0.00027671,119]
[318615454,1710319770963,-18630.38267866,0.00028,120]
[318615455,1710319770972,-2626.0,0.00028888,120]
[318615456,1710319770982,-5025.0,0.00029,120]
[318615457,1710319770991,-50000.0,0.00029,120]
[318615458,1710319771000,-2253.88,0.0003,120]
[318615459,1710319771010,-475.3,0.00030137,120]
[318615460,1710319771019,-1612.968001,0.00031,120]
[318615461,1710319771028,-2500.0,0.00033,120]
[318615462,1710319771037,-199.23935214,0.00033,120]
[318615463,1710319771047,-40384.35777802,0.00034898,120]
[318615464,1710319771056,-200.0,0.00039,120]
[318615465,1710319771065,-4800.36874453,0.00039768,120]
[318615466,1710319771074,-50000.0,0.000399,120]
[318615467,1710319771083,-25000.0,0.000399,120]
[318615468,1710319771092,-5635.42917243,0.0004,120]
[318615469,1710319771101,-11050.0,0.00041,120]
[318615470,1710319771110,-440.28682769,0.00042,120]
[318615471,1710319771119,-5001.83972273,0.00042,120]
[318615472,1710319771129,-2745.36238616,0.00042,120]
[318615473,1710319771138,-668.02464762,0.00044308,120]
[318615474,1710319771147,-1004.77901914,0.000449,120]
[318615475,1710319771156,-3008.48,0.00045,120]
[318615476,1710319771165,-5004.1687395,0.0004801,77]
[318615477,1710319771174,-200.0,0.00049,120]
[318615478,1710319771183,-160.0,0.0005,60]
[318615479,1710319771193,-958.18719954,0.00054,120]
[318615480,1710319771202,-507.71,0.00054794,120]
[318615481,1710319771211,-507.71,0.00054794,120]
[318615482,1710319771219,-507.71,0.00054794,120]
[318615483,1710319771229,-507.71,0.00054794,120]
[318615484,1710319771238,-507.71,0.00054794,120]
[318615485,1710319771247,-507.71,0.00054794,120]
[318615486,1710319771256,-507.71,0.00054794,120]
[318615487,1710319771266,-507.71,0.00054794,120]
[318615488,1710319771275,-507.71,0.00054794,120]
[318615489,1710319771285,-507.71,0.00054794,120]
[318615490,1710319771294,-507.71,0.00054794,120]
[318615491,1710319771303,-507.71,0.00054794,120]
[318615492,1710319771312,-507.71,0.00054794,120]
[318615493,1710319771322,-507.71,0.00054794,120]
[318615494,1710319771331,-507.71,0.00054794,120]
[318615495,1710319771340,-507.71,0.00054794,120]
[318615496,1710319771349,-507.71,0.00054794,120]
[318615497,1710319771359,-507.71,0.00054794,120]
[318615498,1710319771368,-507.71,0.00054794,120]
[318615499,1710319771377,-507.71,0.00054794,120]
[318615500,1710319771386,-507.71,0.00054794,120]
[318615501,1710319771395,-507.71,0.00054794,120]
[318615502,1710319771404,-507.71,0.00054794,120]
[318615503,1710319771414,-507.8276774,0.00054794,120]
[318615504,1710319771423,-188.94397349,0.00054794,120]
[318615505,1710319771432,-5000.1,0.00055,120]
[318615506,1710319771443,-155.85649907,0.000554,120]
[318615507,1710319771453,-1752.83135429,0.00057,120]
[318615508,1710319771462,-200.0,0.00059,120]
[318615509,1710319771471,-1000.0,0.00059999,120]
[318615510,1710319771480,-999.999999,0.0006,120]
[318615511,1710319771490,-1070.0,0.0006,120]
[318615512,1710319771499,-1949.57804124,0.0006,120]
[318615513,1710319771508,-205.45799494,0.0006,120]
[318615514,1710319771519,-300.25903308,0.0006,120]
[318615515,1710319771529,-343.52138089,0.000616,120]
[318615516,1710319771538,-154.14517953,0.000646,120]
[318615517,1710319771548,-1000.0,0.00065999,120]
[318615518,1710319771558,-1260.0,0.00066,120]
[318615519,1710319771567,-781.87348084,0.00068,120]
[318615520,1710319771576,-1260.0,0.00069,120]
[318615521,1710319771586,-200.0,0.00069,120]
[318615522,1710319771595,-1260.0,0.0007,120]
[318615523,1710319771605,-1260.0,0.0007,120]
[318615524,1710319771614,-1260.0,0.0007,120]
[318615525,1710319771623,-4982.48478825,0.0007,120]
[318615526,1710319771632,-1260.0,0.00073,120]
[318615527,1710319771641,-1000.0,0.00073881,120]
[318615528,1710319771651,-1260.0,0.00075,120]
[318615529,1710319771660,-480.0,0.00076712,120]
[318615530,1710319771669,-200.0,0.00078,120]
[318615531,1710319771679,-114214.71140097,0.0008,120]
[318615532,1710319771689,-250.0,0.0008,120]
[318615533,1710319771698,-1260.0,0.0008,120]
[318615534,1710319771706,-1260.0,0.0008,120]
[318615535,1710319771716,-12449.26995183,0.0008,120]
[318615536,1710319771725,-2000.0,0.00088,90]
[318615537,1710319771735,-1000.0,0.00089153,120]
[318615538,1710319771745,-1000.0,0.00089999,120]
[318615539,1710319771754,-1260.0,0.0009,120]
[318615540,1710319771763,-4999.25982831,0.000925,120]
[318615541,1710319771773,-6024.08229638,0.0009488,60]
[318615542,1710319771783,-151.0,0.00097017,120]
[318615543,1710319771793,-1112.57918681,0.001,120]
[318615544,1710319771802,-200.0,0.001,120]
[318615545,1710319771815,-663.5594,0.00109031,120]
[318615546,1710319771824,-672.25942143,0.00123215,120]
[318615547,1710319771833,-440.0,0.00139372,120]
[318615548,1710319771844,-151.0,0.0014625,120]
[318615549,1710319771853,-527625.23860307,0.0015,120]
[318615550,1710319805938,-50000.0,0.0015,120]
[318615551,1710319816393,-29494.14952082,0.0015,120]
[318615552,1710319816403,-500.0,0.00161643,120]
[318615553,1710319816412,-5043.96930679,0.00164,120]
[318615554,1710319816422,-1000.0,0.00183789,120]
[318615555,1710319816434,-914.0,0.00189957,120]
[318615556,1710319816444,-1000.0,0.0019,120]
[318615557,1710319816453,-1000.0,0.002,120]
[318615558,1710319816463,-5000.0,0.002,120]
[318615559,1710319816473,-380.0,0.0020539,120]
[318615560,1710319816484,-672.25942143,0.00221429,120]
[318615561,1710319816494,-300.0,0.00273687,120]
[318615562,1710319816503,-500.0,0.0029863,120]
[318615563,1710319816512,-672.25942143,0.00319644,120]
[318615564,1710319816521,-200.0,0.00343731,120]
[318615565,1710319816530,-1000.0,0.0037679,120]
[318615566,1710319816540,-685.992856,0.00377,120]
[318615567,1710319816550,-1637.36947353,0.003995,120]
[318615568,1710319828679,-1946.78851174,0.003995,120]
[318615569,1710319828688,-40823.31877136,0.00399998,120]
[318615570,1710319828697,-540.0,0.004,120]
[318615571,1710319828706,-200.0,0.004,120]
[318615572,1710319828714,-150.1,0.00415199,120]
[318615573,1710319828723,-672.25942143,0.00417858,120]
[318615574,1710319828732,-965.2,0.0042,120]
[318615575,1710319828742,-500.0,0.00435616,120]
[318615576,1710319828751,-150.1,0.00487874,120]
[318615577,1710319828761,-4052.23329547,0.00498987,120]
[318615623,1710319832709,-212.15239579,0.00014169,2]
[318615625,1710319832718,-294.93488667,0.0001417,2]
[318615627,1710319832727,-226.82983318,0.00014171,2]
[318615629,1710319832736,-524.74757252,0.00014171,2]
[318615631,1710319832746,-184.69472733,0.00014172,2]
[318615634,1710319832756,-1081.4087181,0.00014173,2]
[318615635,1710319832765,-592.06240715,0.00014174,2]
[318616051,1710319836784,-24012.61576746,0.00498987,120]
[318616053,1710319836793,-1000.0,0.00499999,120]
[318616055,1710319836802,-672.25942143,0.00516072,120]
[318616057,1710319836812,-815.11,0.00560776,120]
[318616059,1710319836822,-150.1,0.00561598,120]
[318616061,1710319836837,-500.0,0.00572602,120]
[318616063,1710319836847,-693.441766,0.00581367,120]
[318616065,1710319836856,-672.25942143,0.00614286,120]
[318616067,1710319836865,-150.1,0.00636251,120]
[318616069,1710319836875,-703.15,0.00669684,120]
[318616071,1710319836885,-834.8,0.00691,120]
[318616073,1710319836894,-1000.0,0.00699999,120]
[318616075,1710319836903,-160.0,0.007,120]
[318616077,1710319836912,-18194.68697405,0.007,120]
[318616079,1710319836921,-441.47664963,0.00709589,120]
[318616455,1710319840387,-58.52335037,0.00709589,120]
[318616457,1710319840397,-26559.2487256,0.0071,120]
[318616459,1710319840406,-150.1,0.0071174,120]
[318616461,1710319840416,-672.25942143,0.00712532,120]
[318616463,1710319840425,-1000.0,0.0072283,120]
[318616465,1710319840434,-554.131,0.0074,120]
[318616467,1710319840444,-200.0,0.0074747,120]
[318616469,1710319840454,-1000.0,0.0075,120]
[318616471,1710319840463,-150.1,0.00787989,120]
[318616473,1710319840472,-187.34276333,0.008,120]
[318616475,1710319840482,-672.25942143,0.00810714,120]
[318616477,1710319840493,-895.4339,0.0083229,120]
[318616479,1710319840504,-500.0,0.00846575,120]
[318616481,1710319840514,-150.1,0.00864935,120]
[318616483,1710319840523,-3000.0,0.0088,120]
[318616485,1710319840533,-160.0,0.009,120]
[318616487,1710319840543,-672.25942143,0.00908929,120]
[318616489,1710319840553,-896.367,0.00909153,120]
[318616491,1710319840562,-150.1,0.00942526,120]
[318616493,1710319840571,-500.0,0.00983561,120]
[318616495,1710319840581,-328.6353343,0.00999999,120]
[318616497,1710319840590,-1247.0,0.01,120]
[318616499,1710319840600,-913.81,0.01,120]
[318616501,1710319840609,-739.5939,0.01,120]
[318616503,1710319840619,-8642.73576211,0.01,120]
[318616511,1710319840679,-1429.75479416,0.00014174,2]
[318616512,1710319840689,-45.44490839,0.00014176,2]
[318616515,1710319840701,-285.97691057,0.00014176,2]
[318616517,1710319840710,-179.81023046,0.00014176,2]
[318616519,1710319840720,-1081.4087181,0.00014177,2]
[318616521,1710319840729,-300.0,0.00014326,2]
[318616523,1710319840739,-1468.39121224,0.00014327,2]
[318616920,1710319844365,-1357.26423789,0.01,120]
[318616922,1710319844375,-200.0,0.01,120]
[318616924,1710319844384,-672.25942143,0.01007144,120]
[318616926,1710319844393,-150.1,0.01020717,120]
[318616928,1710319844402,-200.0,0.0104,120]
[318616930,1710319844412,-150.1,0.01099468,120]
[318616932,1710319844421,-160.0,0.011,120]
[318616934,1710319844431,-637.65,0.011,120]
[318616936,1710319844441,-672.25942143,0.01105357,120]
[318616938,1710319844449,-500.0,0.01120547,120]
[318616940,1710319844459,-783.52,0.0117239,120]
[318616942,1710319844468,-150.1,0.01178747,120]
[318616944,1710319844477,-4500.0,0.012,120]
[318616946,1710319844486,-672.25942143,0.01203572,120]
[318616948,1710319844496,-200.0,0.01244,120]
[318616950,1710319844505,-640.81,0.01254,120]
[318616952,1710319844514,-500.0,0.01257534,120]
[318616954,1710319844523,-150.1,0.01258523,120]
[318616956,1710319844532,-160.0,0.013,120]
[318616958,1710319844541,-672.25942143,0.01301787,120]
[318616960,1710319844549,-150.1,0.0133877,120]
[318616962,1710319844558,-500.0,0.0139452,120]
[318616964,1710319844567,-150.1,0.01419464,120]
[318616966,1710319844576,-490.811,0.014243,120]
[318616968,1710319844585,-672.25942143,0.0144163,120]
[318616970,1710319844594,-1000.0,0.01470369,120]
[318616972,1710319844603,-672.25942143,0.01498214,120]
[318616974,1710319844612,-150.0,0.015,120]
[318616976,1710319844621,-150.1,0.01500584,120]
[318616978,1710319844631,-467.9266198,0.01531506,120]
[318616980,1710319844640,-250.0,0.01536,120]
[318616982,1710319844649,-150.1,0.01582111,120]
[318616984,1710319844658,-672.25942143,0.01596429,120]
[318616986,1710319844667,-581.282,0.016,120]
[318616988,1710319844676,-1220.153,0.01658856,120]
[318616990,1710319844685,-503.12794,0.016634,120]
[318616992,1710319844694,-150.1,0.01664027,120]
[318616994,1710319844703,-476.0,0.0168,120]
[318616996,1710319844712,-946.6,0.0168821,120]
[318616998,1710319844721,-672.25942143,0.01694643,120]
[318617000,1710319844732,-160.0,0.017,120]
[318617002,1710319844741,-843.883048,0.017,120]
[318617004,1710319844750,-250.0,0.01732,120]
[318617006,1710319844758,-150.1,0.01746317,120]
[318617008,1710319844767,-672.25942143,0.01792857,120]
[318617010,1710319844777,-150.1,0.01828965,120]
[318617012,1710319844786,-4794.48511926,0.0188,120]
[318617014,1710319844795,-672.25942143,0.01891072,120]
[318617016,1710319844804,-160.0,0.019,120]
[318617018,1710319844815,-150.1,0.01911958,120]
[318617020,1710319844824,-1000.0,0.0194741,120]
[318617022,1710319844835,-474.8856,0.019558,120]
[318617024,1710319844845,-672.25942143,0.01989287,120]
[318617026,1710319844854,-16695.54779932,0.01989987,120]
[318617236,1710319846886,3781.72196109,0.00025,120]
[318619454,1710319874413,-2500.0,0.00028,120]
[318619456,1710319874423,-2500.0,0.00033,120]
[318619458,1710319874433,-5001.83972273,0.00042,120]
[318619460,1710319874443,-1004.77901914,0.000449,120]
[318619462,1710319874453,-5004.1687395,0.0004801,77]
[318619464,1710319874463,-160.0,0.0005,60]
[318619466,1710319874473,-155.85649907,0.000554,120]
[318619468,1710319874483,-1327.1188,0.00109031,120]
[318619470,1710319874492,-151.0,0.0014625,120]
[318619472,1710319874502,-155.09305583,0.0015,120]
[318619474,1710319874513,-965.2,0.0042,120]
[318619476,1710319874525,-815.11,0.00560776,120]
[318619478,1710319874535,-693.441766,0.00581367,120]
[318619480,1710319874545,-834.8,0.00691,120]
[318619482,1710319874555,-554.131,0.0074,120]
[318619484,1710319874565,-1790.8678,0.0083229,120]
[318619486,1710319874574,-8304.45220068,0.01989987,120]
[318619488,1710319874585,-431.01483493,0.01989987,120]
[318619490,1710319874594,-150.1,0.01995285,120]
[318619492,1710319874603,-2932.39725135,0.02,120]
[318619494,1710319874613,-151.0,0.02,120]
[318619496,1710319874624,-549.0,0.02,120]
[318619498,1710319874633,-592.3757,0.02,120]
[318619500,1710319874643,-1981.0,0.02,120]
[318619502,1710319874652,-200.0,0.02,120]
[318619504,1710319874662,-250.0,0.02014,120]
[318619506,1710319874671,-150.1,0.02078932,120]
[318619508,1710319874681,-672.25942143,0.02087587,120]
[318619510,1710319874691,-160.0,0.021,120]
[318619512,1710319874700,-257.76350352,0.0216289,120]
[318619514,1710319874709,-672.25942143,0.02185714,120]
[318619516,1710319874719,-155.0,0.02222,120]
[318619518,1710319874728,-672.25942143,0.0228393,120]
[318619520,1710319874738,-160.0,0.023,120]
[318619522,1710319874747,-200.0,0.02345,120]
[318619524,1710319874758,-672.25942143,0.02382143,120]
[318619526,1710319874769,-672.25942143,0.02480358,120]
[318619528,1710319874778,-1000.0,0.024842,120]
[318619530,1710319874788,-151.0,0.025,120]
[318619532,1710319874798,-600.84818,0.02522,120]
[318619534,1710319874807,-480.0,0.0257,120]
[318619536,1710319874817,-672.25942143,0.02578572,120]
[318619538,1710319874831,-977.805,0.02631574,120]
[318619540,1710319874843,-672.25942143,0.02676787,120]
[318619542,1710319874854,-160.0,0.027,120]
[318619544,1710319874864,-933.508,0.02715,120]
[318619546,1710319874876,-250.0,0.02743,120]
[318619548,1710319874887,-200.0,0.0274747,120]
[318619550,1710319874898,-303.41297724,0.02775918,120]
[318620022,1710319893206,-368.84644419,0.02775918,120]
[318620023,1710319893216,-506.9,0.0278,120]
[318620024,1710319893226,-672.25942143,0.02873215,120]
[318620025,1710319893236,-250.0,0.0288,120]
[318620026,1710319893246,-160.0,0.029,120]
[318620027,1710319893256,-488.35,0.0293153,120]
[318620028,1710319893265,-672.25942143,0.02971429,120]
[318620029,1710319893274,-151.0,0.03,120]
[318620030,1710319893288,-7774.37879176,0.03,120]
[318620031,1710319893301,-2463.999999,0.03,120]
[318620032,1710319893313,-554.913,0.0301,120]
[318620033,1710319893326,-672.0,0.0302325,120]
[318620034,1710319893339,-672.25942143,0.03069643,120]
[318620035,1710319893351,-160.0,0.031,120]
[318620036,1710319893362,-200.0,0.03143,120]
[318620038,1710319893373,-718.9287,0.0315,120]
[318620039,1710319893383,-672.25942143,0.03167857,120]
[318620040,1710319893394,-976.068,0.0323085,120]
[318620041,1710319893406,-250.0,0.03253,120]
[318620042,1710319893418,-672.25942143,0.03266071,120]
[318620043,1710319893430,-806.62,0.032835,120]
[318620044,1710319893441,-160.0,0.033,120]
[318620045,1710319893453,-155.0,0.03333,120]
[318620046,1710319893464,-1000.0,0.03333333,120]
[318620047,1710319893475,-672.25942143,0.03364287,120]
[318620048,1710319893488,-28149.43853647,0.0338,120]
[318620049,1710319899626,-16947.96255762,0.0338,120]
[318620050,1710319899636,-574.0,0.034,120]
[318620051,1710319899648,-865.03584,0.034,120]
[318620052,1710319899659,-672.25942143,0.03462571,120]
[318620053,1710319899670,-914.0,0.034649,120]
[318620054,1710319899681,-1037.3,0.03467419,120]
[318620055,1710319899691,-20000.0,0.03489987,120]
[318620056,1710319899701,-151.0,0.035,120]
[318620057,1710319899712,-672.25942143,0.03560714,120]
[318620058,1710319899722,-626.442444,0.036,120]
[318620059,1710319899731,-672.25942143,0.0365893,120]
[318620060,1710319899741,-420.0,0.0368,110]
[318620061,1710319899751,-160.0,0.037,120]
[318620062,1710319899761,-6287.48089409,0.0374,120]
[318620066,1710320056001,-161.092342,0.00027671,61]
[318620067,1710320056011,-161.092342,0.00027671,90]
[318620068,1710320056021,-161.092342,0.00027671,120]
[318620069,1710320056030,-49516.722974,0.00029,120]
[318620072,1710320069339,-16483.277026,0.00029,120]
[318620073,1710320069349,-199.24164003,0.00033,120]
[318620074,1710320069359,-33317.48133397,0.00034898,120]
[318620075,1710320106821,-160.91325393,0.00027,120]
[318620076,1710320106832,-7087.76376684,0.00034898,120]
[318620077,1710320106842,-4842.18035742,0.00039768,120]
[318620078,1710320106851,-2745.47966466,0.00042,120]
[318620079,1710320106860,-440.29337763,0.00042,120]
[318620080,1710320106869,-1004.77901914,0.000449,120]
[318620081,1710320106878,-160.0,0.0005,60]
[318620082,1710320106888,-958.20552417,0.00054,120]
[318620083,1710320106898,-1753.91944712,0.00057,120]
[318620084,1710320106909,-999.999999,0.0006,120]
[318620085,1710320106918,-1959.4408859,0.0006,120]
[318620086,1710320106927,-300.25903308,0.0006,120]
[318620087,1710320106936,-343.62341881,0.000616,120]
[318620088,1710320106946,-480.0,0.00076712,120]
[318620089,1710320106955,-26763.1422523,0.0008,120]
[318620091,1710320195658,-203.16,0.000199,27]
[318620092,1710320209232,-949.88097849,0.0002,10]
[318620095,1710320494045,-500.0,0.00021917,30]
[318620096,1710320494071,-519.15992549,0.00021917,30]
[318620097,1710320508238,-1000.0,0.00022,20]
[318620098,1710320512516,-26280.84007451,0.0002067,10]
[318620166,1710321031832,-155.11323266,0.00013723,2]
[318620168,1710321031843,-191.63961373,0.00013724,2]
[318620170,1710321031854,-918.51006935,0.00013724,2]
[318620175,1710321031892,-964.20218428,0.00013724,2]
[318620179,1710321031902,-1570.727605,0.00013728,2]
[318620183,1710321031913,-250.0,0.00013761,2]
[318620185,1710321031923,-624.65442974,0.00013946,2]